fUST/lending_fUST_20240120
["ID","MTS","AMOUNT","RATE_DAILY","PERIOD"]
[312245420,1705705630161,-154.86062544,0.00016692,2]
[312245421,1705705630181,-5188.92510478,0.00016692,2]
[312245422,1705705640547,4698.66437663,0.00015863,2]
[312245423,1705705641579,3484.00738958,0.00016364,2]
[312245424,1705705643832,521.34294529,0.0001502,2]
[312245425,1705705660543,4698.66437663,0.00015703,2]
[312245426,1705705661595,2137.61509659,0.00016198,2]
[312245427,1705705665420,24900.0,0.00015667,2]
[312245428,1705705676545,929.41431598,0.00015702,2]
[312245432,1705705746126,-154.86062544,0.00016522,2]
[312245433,1705705746148,-5000.0,0.00016522,2]
[312245434,1705705746169,-1589.24944099,0.00016523,2]
[312245435,1705705746189,-260.99609825,0.00016524,2]
[312245436,1705705746209,-154.86062544,0.00016524,2]
[312245437,1705705746230,-20864.2178903,0.00016524,2]
[312245438,1705705746250,-1293.1158294,0.00016525,2]
[312245439,1705705746270,-230.71907883,0.00016525,2]
[312245440,1705705746300,-154.86062544,0.00016525,2]
[312245441,1705705746329,-644.05484588,0.00016525,2]
[312245442,1705705746352,-7956.19039627,0.00016525,2]
[312245443,1705705746374,-4811.28224285,0.00016525,2]
[312245444,1705705746399,-30766.32680649,0.00016525,2]
[312245445,1705705747093,-16248.32529645,0.00016525,2]
[312245446,1705705749503,-2704.48383151,0.00016522,2]
[312245447,1705705749524,-156.15330816,0.00016523,2]
[312245448,1705705749543,-5260.41509652,0.00016525,2]
[312245449,1705705752646,250.0,0.00015527,2]
[312245451,1705705759658,5000.0,0.00016027,2]
[312245452,1705705762114,-154.86062544,0.00016521,2]
[312245453,1705705762134,-154.86062544,0.00016521,2]
[312245454,1705705762153,-412.29406912,0.00016521,2]
[312245455,1705705767150,-1265.98341186,0.0001652,2]
[312245456,1705705767172,-154.86062544,0.0001652,2]
[312245457,1705705767192,-555.04009963,0.0001652,2]
[312245458,1705705767213,-154.86062544,0.0001652,2]
[312245459,1705705767233,-204.13527913,0.00016521,2]
[312245460,1705705767252,-561.34972168,0.00016521,2]
[312245461,1705705767272,-154.86062544,0.00016521,2]
[312245462,1705705767292,-18895.08975883,0.00016521,2]
[312245463,1705705767311,-154.86062544,0.00016521,2]
[312245464,1705705767331,-213.31905426,0.00016521,2]
[312245465,1705705767354,-2813.43161407,0.00016521,2]
[312245466,1705705767374,-7999.96196843,0.00016521,2]
[312245467,1705705767393,-8757.15684933,0.00016522,2]
[312245468,1705705767416,-154.86062544,0.00016522,2]
[312245469,1705705767436,-330.10320248,0.00016523,2]
[312245470,1705705767455,-154.86062544,0.00016523,2]
[312245471,1705705767475,-154.86062544,0.00016523,2]
[312245472,1705705767497,-324.20650347,0.00016523,2]
[312245473,1705705767518,-7956.19039627,0.00016523,2]
[312245474,1705705767538,-657.22559333,0.00016523,2]
[312245475,1705705767558,-1171.3680691,0.00016523,2]
[312245476,1705705767578,-996.21183082,0.00016524,2]
[312245477,1705705767620,-154.86062544,0.00016524,2]
[312245478,1705705767641,-494.38923931,0.00016524,2]
[312245479,1705705767662,-230.71907883,0.00016524,2]
[312245480,1705705767682,-10535.98072684,0.00016524,2]
[312245481,1705705767702,-28893.69469843,0.00016525,2]
[312245482,1705705767722,-3128.22508425,0.00016525,2]
[312245483,1705705767742,-787.34773645,0.00016525,2]
[312245484,1705705767761,-178.65716453,0.00016526,2]
[312245485,1705705767781,-15906.57674273,0.00016526,2]
[312245486,1705705767802,-21675.6082244,0.00016526,2]
[312245487,1705705767821,-29469.35287393,0.00016529,2]
[312245488,1705705767841,-2062.0796706,0.00016531,2]
[312245489,1705705767862,-698.8573842,0.00016598,2]
[312245490,1705705767882,-252.34035782,0.00016689,2]
[312245491,1705705767902,-368.88691029,0.00016689,2]
[312245492,1705705767922,-241.77229142,0.00016689,2]
[312245493,1705705767942,-3474.61431131,0.00016698,2]
[312245494,1705705767962,-282.13929283,0.00016698,2]
[312245495,1705705767984,-156.8291837,0.00016698,2]
[312245496,1705705768004,-179.11058245,0.00016698,2]
[312245497,1705705768024,-607.73189313,0.00016698,2]
[312245498,1705705768047,-174.78771888,0.00016698,2]
[312245499,1705705768070,-165.04572519,0.00016698,2]
[312245500,1705705768092,-257.16498644,0.00016698,2]
[312245501,1705705768114,-294.70821043,0.00016698,2]
[312245502,1705705768135,-160.62471582,0.00016698,2]
[312245503,1705705768158,-524.49784506,0.00016698,2]
[312245504,1705705768178,-918.4287939,0.00016729,2]
[312245505,1705705768199,-2102.11817883,0.00016732,2]
[312245506,1705705768220,-470.42511817,0.00016732,2]
[312245507,1705705768241,-154.86062544,0.00016736,2]
[312245508,1705705768267,-873.86173983,0.00017235,2]
[312245509,1705705768290,-200.0,0.00017539,2]
[312245510,1705705768311,-154.98450155,0.00017705,2]
[312245511,1705705768333,-155.26235345,0.00017705,2]
[312245512,1705705768354,-4228.86661635,0.00017706,2]
[312245513,1705705768375,-175.15744727,0.00017706,2]
[312245514,1705705768396,-163.5644823,0.00017712,2]
[312245515,1705705768421,-163.56448229,0.00017713,2]
[312245516,1705705768441,-163.56448229,0.00017714,2]
[312245517,1705705768463,-163.56448229,0.00017715,2]
[312245518,1705705768485,-163.56448229,0.00017716,2]
[312245519,1705705768512,-215.8732012,0.00017807,2]
[312245520,1705705768533,-1991.47489768,0.00017807,2]
[312245521,1705705768557,-191.28367071,0.00017807,2]
[312245522,1705705768705,-1239.51634774,0.00017807,2]
[312245523,1705705768729,-155.15668265,0.00017807,2]
[312245524,1705705768750,-302.11493047,0.00017807,2]
[312245525,1705705768772,-365.35304543,0.00017807,2]
[312245526,1705705768792,-2602.43577459,0.00017807,2]
[312245527,1705705768814,-322.87152922,0.00017807,2]
[312245528,1705705768835,-155.18012841,0.00017807,2]
[312245529,1705705768856,-251.00482492,0.00017807,2]
[312245530,1705705768876,-155.23624425,0.00017807,2]
[312245531,1705705768898,-191.21092113,0.00017808,2]
[312245532,1705705771090,-452.47030798,0.00016519,2]
[312245533,1705705771111,-178.65716453,0.00016519,2]
[312245534,1705705771130,-19857.05526045,0.0001652,2]
[312245535,1705705771150,-3989.28990186,0.00017808,2]
[312245536,1705705771170,-260.45527648,0.00017816,2]
[312245537,1705705771189,-166.38930686,0.00017819,2]
[312245538,1705705771208,-302.12150469,0.00017819,2]
[312245539,1705705771227,-10528.8773707,0.00017898,2]
[312245540,1705705771246,-1639.48831471,0.000189,2]
[312245541,1705705771267,-1264.38706823,0.00019,2]
[312245542,1705705772097,-316.73234099,0.00019,2]
[312245543,1705705772117,-165.900713,0.00019178,2]
[312245544,1705705772139,-280.0,0.00019293,2]
[312245545,1705705772161,-698.8573842,0.00019624,2]
[312245546,1705705772180,-1197.20181474,0.0002,2]
[312245547,1705705772201,-678.20873721,0.0002,2]
[312245548,1705705772221,-375.16526378,0.00020853,2]
[312245549,1705705772241,-245.2106015,0.00020853,2]
[312245550,1705705772262,-6542.08623871,0.00021,2]
[312245551,1705705772281,-10798.99569433,0.00021,2]
[312245552,1705705772301,-1763.93265691,0.00021,2]
[312245553,1705705772320,-327.3065169,0.00021,2]
[312245554,1705705772342,-176.20586465,0.00021222,7]
[312245555,1705705772367,-156.05990121,0.00021884,2]
[312245556,1705705772389,-166.666666,0.00021918,2]
[312245557,1705705772412,-293.28439443,0.00022,4]
[312245558,1705705772432,-425.69649895,0.00022,2]
[312245559,1705705772454,-3963.07176261,0.00022,2]
[312245560,1705705772474,-1824.95710943,0.00022023,2]
[312245561,1705705772496,-154.86062544,0.00022023,2]
[312245562,1705705772515,-225.31482576,0.00022023,2]
[312245564,1705705798667,-341.79036076,0.00016518,2]
[312245565,1705705798690,-787.34773645,0.00016519,2]
[312245627,1705705832511,-1824.95710943,0.00021,2]
[312245629,1705705832521,-154.86062544,0.00022,2]
[312245631,1705705832530,-74.68517424,0.00022023,2]
[312245633,1705705832540,-154.86062544,0.00022023,2]
[312245634,1705705832549,-157.08029083,0.00022023,2]
[312245636,1705705832558,-678.20873721,0.00022199,2]
[312245639,1705705832568,-19106.66,0.000222,3]
[312245642,1705705832577,-17961.78,0.000222,3]
[312245644,1705705832586,-14968.15,0.000222,3]
[312245647,1705705832595,-327.3065169,0.00022207,2]
[312245651,1705705832611,-787.34773645,0.00022207,2]
[312245653,1705705832620,-470.42511817,0.00022208,2]
[312245655,1705705832630,-3963.07176261,0.00022208,2]
[312245681,1705705832774,-392.60460187,0.00022208,2]
[312245683,1705705832784,-2447.97270277,0.00022209,2]
[312245685,1705705832793,-154.86062544,0.00022209,2]
[312245687,1705705832802,-1258.39507472,0.00022209,2]
[312245689,1705705832812,-296.70536102,0.00022209,2]
[312245691,1705705832820,-281.4514986,0.00022209,2]
[312245693,1705705832829,-155.52986691,0.00022209,2]
[312245695,1705705832838,-185.1977226,0.00022209,2]
[312245697,1705705832848,-429.15717614,0.00022209,2]
[312245699,1705705832857,-270.33178613,0.00022209,2]
[312245700,1705705832866,-226.4771422,0.00022209,2]
[312245701,1705705832875,-286.23049881,0.00022209,2]
[312245702,1705705832884,-7956.19039627,0.00022209,2]
[312245703,1705705832893,-1763.93265691,0.00022209,2]
[312245704,1705705832903,-1265.64175415,0.00022209,2]
[312245705,1705705832912,-212.94609426,0.00022209,2]
[312245706,1705705832921,-274.44661232,0.00022209,2]
[312245707,1705705832930,-3568.23174455,0.00022209,2]
[312245708,1705705832940,-7999.96196843,0.0002221,2]
[312245709,1705705832949,-38515.34023321,0.0002221,2]
[312245710,1705705832977,-326.7385268,0.0002221,2]
[312245746,1705705838666,-425.69649895,0.00022,2]
[312245747,1705705838675,-12591.58232868,0.0002221,2]
[312245748,1705705838684,-2997.30262595,0.00022221,2]
[312245749,1705705838694,-166.666666,0.00022431,2]
[312245750,1705705838702,-698.8573842,0.00022649,2]
[312245751,1705705838711,-823.86653966,0.00022943,2]
[312245752,1705705838720,-166.666666,0.00022944,2]
[312245753,1705705838729,-155.24775222,0.00023286,2]
[312245754,1705705838738,-155.51757851,0.00023286,2]
[312245755,1705705838747,-452.47030798,0.00023286,2]
[312245756,1705705838756,-211.88668177,0.00023286,2]
[312245757,1705705838765,-2813.43161407,0.00023286,2]
[312245758,1705705838773,-561.34972168,0.00023286,2]
[312245759,1705705838782,-2102.11817883,0.00023286,2]
[312245760,1705705838791,-10528.8773707,0.00023287,2]
[312245761,1705705838800,-4664.72972202,0.00023287,2]
[312245762,1705705838809,-14320.20364452,0.00023287,2]
[312245763,1705705838819,-631.71882378,0.00023288,2]
[312245765,1705705838828,-536.73518749,0.00023288,2]
[312245766,1705705838837,-500.0,0.00023288,2]
[312245768,1705705838847,-500.0,0.00023288,2]
[312245770,1705705838856,-453.18625251,0.00023288,2]
[312245773,1705705838865,-499.93659138,0.00023288,2]
[312245776,1705705838874,-500.0,0.00023288,2]
[312245778,1705705838883,-500.0,0.00023288,2]
[312245780,1705705838892,-618.57321513,0.00023288,2]
[312245782,1705705838901,-500.0,0.00023288,2]
[312245785,1705705838911,-180.27358116,0.00023288,2]
[312245788,1705705838920,-500.0,0.00023288,2]
[312245790,1705705838930,-500.0,0.00023288,2]
[312245792,1705705838939,-500.0,0.00023288,2]
[312245794,1705705838949,-500.0,0.00023288,2]
[312245796,1705705838958,-500.0,0.00023288,2]
[312245798,1705705838968,-500.0,0.00023288,2]
[312245800,1705705838977,-500.0,0.00023288,2]
[312245802,1705705838986,-616.99338034,0.00023288,2]
[312245804,1705705838995,-500.0,0.00023288,2]
[312245806,1705705839004,-442.01968586,0.00023288,2]
[312245808,1705705839013,-190.43096174,0.00023288,2]
[312245810,1705705839023,-500.0,0.00023288,2]
[312245812,1705705839032,-500.0,0.00023288,2]
[312245814,1705705839042,-500.0,0.00023288,2]
[312245816,1705705839051,-500.0,0.00023288,2]
[312245817,1705705839061,-500.0,0.00023288,2]
[312245819,1705705839070,-500.0,0.00023288,2]
[312245822,1705705839088,-500.0,0.00023288,2]
[312245823,1705705839101,-296.26116246,0.00023288,2]
[312245825,1705705839110,-500.0,0.00023288,2]
[312245827,1705705839120,-500.0,0.00023288,2]
[312245829,1705705839130,-500.0,0.00023288,2]
[312245831,1705705839139,-500.0,0.00023288,2]
[312245833,1705705839149,-500.0,0.00023288,2]
[312245835,1705705839159,-500.0,0.00023288,2]
[312245837,1705705839168,-500.0,0.00023288,2]
[312245839,1705705839178,-500.0,0.00023288,2]
[312245841,1705705839187,-500.0,0.00023288,2]
[312245843,1705705839197,-500.0,0.00023288,2]
[312245845,1705705839207,-500.0,0.00023288,2]
[312245848,1705705839217,-500.0,0.00023288,2]
[312245850,1705705839227,-500.0,0.00023288,2]
[312245852,1705705839236,-300.0,0.00023288,2]
[312245854,1705705839246,-199.99999999,0.00023288,2]
[312245856,1705705839256,-200.0,0.00023345,7]
[312245858,1705705839266,-348.0,0.00023345,7]
[312245860,1705705839276,-166.666666,0.00023456,2]
[312245862,1705705839285,-611.466693,0.00023558,2]
[312245864,1705705839295,-1639.48831471,0.000239,2]
[312245866,1705705839305,-166.666666,0.00023969,2]
[312245868,1705705839315,-4011.58774012,0.00024,2]
[312245870,1705705839325,-4011.58774012,0.00024,2]
[312245872,1705705839334,-166.666666,0.00024482,2]
[312245874,1705705839344,-1000.0,0.00024657,2]
[312245877,1705705839354,-829.1810316,0.00024657,2]
[312245878,1705705839363,-498.00832139,0.0002495,5]
[312245880,1705705839373,-1045.65136347,0.00025,2]
[312245882,1705705839381,-701.41982279,0.00025,2]
[312245884,1705705839391,-4719.78899734,0.00025,2]
[312245885,1705705839401,-4417.39589861,0.00025,2]
[312245886,1705705839411,-1001.68368402,0.00025,2]
[312245887,1705705839420,-155.058075,0.00025,2]
[312245888,1705705839430,-1113.91161195,0.00025092,2]
[312245889,1705705839442,-2093.74877759,0.00025297,2]
[312245890,1705705839452,-698.8573842,0.00025675,2]
[312245891,1705705839462,-200.0,0.00025679,7]
[312245892,1705705839472,-200.0,0.00025679,7]
[312245893,1705705839483,-368.0,0.00025679,7]
[312245894,1705705839492,-3910.88074803,0.00026,2]
[312245895,1705705839502,-170.72767926,0.00026408,2]
[312245896,1705705839512,-518.34359506,0.00026409,2]
[312245897,1705705839523,-155.18445706,0.00026409,2]
[312245898,1705705839532,-843.09332408,0.00026409,2]
[312245899,1705705839542,-155.23850692,0.00026409,2]
[312245900,1705705839552,-219.56301904,0.00026409,2]
[312245901,1705705839561,-275.43231332,0.00026409,2]
[312245902,1705705839571,-274.61857249,0.00027,2]
[312245903,1705705839580,-260.0,0.00027,2]
[312245904,1705705839590,-154.87609912,0.0002788,2]
[312245905,1705705839599,-3971.58661394,0.0002788,7]
[312245906,1705705839609,-272.77597099,0.0002788,2]
[312245907,1705705839618,-154.87609912,0.0002788,2]
[312245908,1705705839628,-155.10885318,0.0002788,2]
[312245909,1705705839637,-167.30882437,0.0002788,2]
[312245910,1705705839647,-154.9690062,0.0002788,2]
[312245911,1705705839656,-273.22922834,0.0002788,2]
[312245912,1705705839665,-277.93951097,0.0002788,2]
[312245913,1705705839675,-155.16423546,0.0002788,2]
[312245914,1705705839684,-155.25569736,0.0002788,2]
[312245915,1705705839694,-155.37889533,0.0002788,2]
[312245916,1705705839704,-154.86062544,0.00028,10]
[312245917,1705705839713,-290.08228321,0.00028,2]
[312245918,1705705839723,-200.0,0.00028247,15]
[312245919,1705705839733,-200.0,0.00028247,15]
[312245920,1705705839743,-200.0,0.00028247,15]
[312245921,1705705839753,-200.0,0.00028247,15]
[312245922,1705705839763,-275.0,0.00028247,15]
[312245923,1705705839773,-698.8573842,0.000287,2]
[312245924,1705705839782,-155.06823002,0.00028701,3]
[312245925,1705705839792,-11772.26462134,0.00028749,2]
[312245926,1705705839802,-193.00215354,0.00028762,2]
[312245927,1705705839811,-155.92855729,0.00028762,2]
[312245928,1705705839820,-154.87609912,0.00028762,2]
[312245929,1705705839830,-594.84589351,0.00028762,2]
[312245930,1705705839840,-265.32889701,0.00028762,2]
[312245931,1705705839849,-243.88530595,0.00028762,2]
[312245932,1705705839860,-282.56006932,0.00028762,2]
[312245933,1705705839870,-154.9690062,0.00028762,2]
[312245934,1705705839879,-849.76694483,0.00028762,2]
[312245935,1705705839889,-234.81558708,0.00028762,2]
[312245936,1705705839899,-2033.48363052,0.00028762,2]
[312245937,1705705839908,-227.62690524,0.00028762,2]
[312245938,1705705839918,-181.34567251,0.00028762,2]
[312245939,1705705839928,-172.15969274,0.00028762,2]
[312245940,1705705839938,-229.22498899,0.00028763,2]
[312245941,1705705839948,-270.19168243,0.00028763,2]
[312245942,1705705839958,-1022.78910891,0.00028763,2]
[312245943,1705705839970,-607.13204194,0.00028763,2]
[312245944,1705705839979,-376.37785999,0.00028768,3]
[312245945,1705705839989,-84860.83660765,0.00028768,2]
[312245946,1705705839999,-155.0,0.0002879,2]
[312245947,1705705840008,-306.0,0.00028799,2]
[312245948,1705705840018,-306.0,0.00028799,2]
[312245949,1705705840028,-306.0,0.00028799,2]
[312245950,1705705840040,-306.0,0.00028799,2]
[312245951,1705705840050,-306.0,0.00028799,2]
[312245952,1705705840058,-306.0,0.00028799,2]
[312245953,1705705840067,-306.0,0.00028799,2]
[312245954,1705705840077,-306.0,0.00028799,2]
[312245955,1705705840087,-306.0,0.00028799,2]
[312245956,1705705840096,-439.61497917,0.00028799,2]
[312245957,1705705840106,-410.83858145,0.00028799,4]
[312245958,1705705840116,-475.01653594,0.00028799,4]
[312245959,1705705840125,-433.78102858,0.00028799,4]
[312245960,1705705840135,-578.46139311,0.00028799,4]
[312245961,1705705840144,-382.67178203,0.00028799,4]
[312245962,1705705840154,-3000.0,0.000288,3]
[312245963,1705705840163,-438240.07649795,0.000288,2]
[312245964,1705705840173,-24583.52528654,0.000288,2]
[312245965,1705705840182,-1639.48831471,0.000289,2]
[312245966,1705705840192,-1879.41245692,0.00029,2]
[312245967,1705705840203,-154.86062544,0.00029,2]
[312245968,1705705840214,-54792.97642603,0.00029,2]
[312245969,1705705840222,-832.47642224,0.00029,2]
[312245970,1705705840233,-2036.31691242,0.00029,2]
[312245971,1705705840243,-165.48452,0.00029034,2]
[312245972,1705705840253,-206.8857815,0.00029178,2]
[312245973,1705705840263,-633.69251616,0.00029309,2]
[312245974,1705705840272,-544.7513541,0.00029315,2]
[312245975,1705705840282,-283.87572807,0.00029349,2]
[312245976,1705705840292,-154.98450155,0.00029349,2]
[312245977,1705705840303,-267.62432128,0.00029349,2]
[312245978,1705705840314,-262.29973777,0.00029349,2]
[312245979,1705705840327,-372.27965029,0.00029352,2]
[312245980,1705705840338,-82346.4378424,0.0002979,7]
[312245981,1705705840348,-4895.95,0.00029899,2]
[312245982,1705705840358,-1561.64177711,0.000299,2]
[312245983,1705705840369,-38560.35367316,0.000299,2]
[312245984,1705705840380,-151.0,0.000299,2]
[312245985,1705705840390,-244.65292422,0.0003,4]
[312245986,1705705840400,-682.3767278,0.0003,3]
[312245987,1705705840409,-29944.40132639,0.0003,2]
[312245988,1705705840419,-30319.07639528,0.0003,2]
[312245989,1705705840560,-30479.54764278,0.0003,3]
[312245990,1705705840571,-2103.77243551,0.0003,4]
[312245991,1705705840581,-18583.86209402,0.0003,2]
[312245992,1705705840593,-699.75171641,0.0003,2]
[312245993,1705705840602,-422141.51631474,0.0003,30]
[312245994,1705705840618,-10202.84952288,0.0003,30]
[312246009,1705705842125,-1301.27893067,0.00022209,2]
[312246043,1705705843720,-208.31397001,0.00022,2]
[312246044,1705705843730,-62.97734996,0.00022209,2]
[312246045,1705705843743,-3019.42091758,0.00022209,2]
[312246082,1705705846698,-15997.55273626,0.00022209,2]
[312246083,1705705846710,-1294.37828993,0.00022209,2]
[312246084,1705705846721,-327.3065169,0.00029999,2]
[312246085,1705705846729,-155.2307004,0.00029999,2]
[312246086,1705705846738,-1496.39403477,0.00029999,2]
[312246087,1705705846767,-267.53862214,0.00029999,2]
[312246088,1705705846777,-502.25631342,0.00029999,2]
[312246089,1705705846786,-115508.44155297,0.0003,30]
[312246090,1705705846795,-154.86062544,0.0003,4]
[312246091,1705705846804,-464.33375401,0.0003,2]
[312246092,1705705846814,-280.92218192,0.0003,30]
[312246093,1705705846823,-5999.99,0.0003,7]
[312246094,1705705846833,-688.01285151,0.0003,4]
[312246095,1705705846841,-3760.16732,0.0003,2]
[312246096,1705705846850,-300.0,0.0003,14]
[312246097,1705705846859,-500.0,0.0003,3]
[312246098,1705705846869,-151.0,0.0003,2]
[312246099,1705705846879,-151.0,0.0003,2]
[312246100,1705705846889,-432.8970436,0.0003,4]
[312246101,1705705846899,-950.829697,0.0003,2]
[312246102,1705705846908,-950.829697,0.0003,2]
[312246111,1705705847053,-10000.0,0.0003,2]
[312246113,1705705847064,-10000.0,0.0003,2]
[312246116,1705705847073,-10000.0,0.0003,2]
[312246118,1705705847083,-197.66015105,0.0003013,2]
[312246120,1705705847093,-500.0,0.00030136,2]
[312246122,1705705847104,-153.0,0.00030137,2]
[312246124,1705705847115,-153.0,0.00030137,2]
[312246125,1705705847127,-306.0,0.00030137,2]
[312246126,1705705847138,-153.0,0.00030137,2]
[312246127,1705705847148,-199.0432224,0.00030137,2]
[312246128,1705705847158,-153.0,0.00030137,2]
[312246129,1705705847167,-153.0,0.00030137,2]
[312246130,1705705847177,-153.0,0.00030137,2]
[312246131,1705705847187,-199.0432224,0.00030137,2]
[312246132,1705705847196,-153.0,0.00030137,2]
[312246133,1705705847206,-153.0,0.00030137,2]
[312246134,1705705847216,-199.0432224,0.00030137,2]
[312246135,1705705847235,-153.0,0.00030137,2]
[312246136,1705705847244,-153.0,0.00030137,2]
[312246137,1705705847254,-153.0,0.00030137,2]
[312246138,1705705847263,-199.0432224,0.00030137,2]
[312246139,1705705847272,-199.0432224,0.00030137,2]
[312246140,1705705847282,-199.0432224,0.00030137,2]
[312246141,1705705847290,-199.0432224,0.00030137,2]
[312246142,1705705847300,-199.0432224,0.00030137,2]
[312246143,1705705847310,-199.0432224,0.00030137,2]
[312246144,1705705847319,-199.0432224,0.00030137,2]
[312246145,1705705847329,-199.0432224,0.00030137,2]
[312246146,1705705847338,-199.0432224,0.00030137,2]
[312246147,1705705847347,-199.0432224,0.00030137,2]
[312246148,1705705847356,-199.0432224,0.00030137,2]
[312246149,1705705847365,-153.0,0.00030137,2]
[312246150,1705705847374,-199.0432224,0.00030137,2]
[312246151,1705705847383,-306.0,0.00030137,2]
[312246152,1705705847392,-153.0,0.00030137,2]
[312246153,1705705847401,-153.0,0.00030137,2]
[312246154,1705705847410,-199.0432224,0.00030137,2]
[312246155,1705705847420,-153.0,0.00030137,2]
[312246156,1705705847429,-153.0,0.00030137,2]
[312246157,1705705847438,-199.0432224,0.00030137,2]
[312246158,1705705847450,-153.0,0.00030137,2]
[312246159,1705705847459,-199.0432224,0.00030137,2]
[312246160,1705705847476,-153.0,0.00030137,2]
[312246161,1705705847486,-153.0,0.00030137,2]
[312246162,1705705847494,-199.0432224,0.00030137,2]
[312246163,1705705847504,-153.0,0.00030137,2]
[312246164,1705705847513,-153.0,0.00030137,2]
[312246165,1705705847524,-199.0432224,0.00030137,2]
[312246166,1705705847533,-199.0432224,0.00030137,2]
[312246167,1705705847542,-199.0432224,0.00030137,2]
[312246168,1705705847551,-199.0432224,0.00030137,2]
[312246169,1705705847561,-153.0,0.00030137,2]
[312246170,1705705847570,-153.0,0.00030137,2]
[312246171,1705705847579,-153.0,0.00030137,2]
[312246172,1705705847589,-153.0,0.00030137,2]
[312246173,1705705847598,-153.0,0.00030137,2]
[312246174,1705705847607,-190.8412942,0.00030137,2]
[312246175,1705705847616,-153.0,0.00030137,2]
[312246176,1705705847625,-153.0,0.00030137,2]
[312246177,1705705847634,-306.0,0.00030137,2]
[312246178,1705705847643,-153.0,0.00030137,2]
[312246179,1705705847653,-153.0,0.00030137,2]
[312246180,1705705847662,-153.0,0.00030137,2]
[312246181,1705705847671,-153.0,0.00030137,2]
[312246182,1705705847680,-153.0,0.00030137,2]
[312246183,1705705847689,-153.0,0.00030137,2]
[312246184,1705705847698,-153.0,0.00030137,2]
[312246185,1705705847707,-153.0,0.00030137,2]
[312246186,1705705847716,-199.0432224,0.00030137,2]
[312246187,1705705847729,-153.0,0.00030137,2]
[312246188,1705705847740,-153.0,0.00030137,2]
[312246189,1705705847749,-153.0,0.00030137,2]
[312246190,1705705847758,-153.0,0.00030137,2]
[312246191,1705705847768,-153.0,0.00030137,2]
[312246192,1705705847778,-153.0,0.00030137,2]
[312246193,1705705847787,-199.0432224,0.00030137,2]
[312246194,1705705847798,-153.0,0.00030137,2]
[312246195,1705705847807,-153.0,0.00030137,2]
[312246196,1705705847816,-153.0,0.00030137,2]
[312246197,1705705847826,-153.0,0.00030137,2]
[312246198,1705705847835,-199.0432224,0.00030137,2]
[312246199,1705705847844,-159.200316,0.00030137,2]
[312246200,1705705847853,-186.821497,0.00030137,2]
[312246201,1705705847862,-678.70377341,0.00030137,2]
[312246202,1705705847873,-150.59780387,0.00030137,7]
[312246203,1705705847882,-188.40641965,0.00030137,7]
[312246204,1705705847891,-155.0,0.0003016,2]
[312246205,1705705847901,-500.0,0.00030273,2]
[312246206,1705705847910,-500.0,0.0003041,2]
[312246207,1705705847919,-3994.29080351,0.000305,2]
[312246208,1705705847928,-500.0,0.00030547,2]
[312246209,1705705847938,-3000.0,0.000306,14]
[312246210,1705705847947,-150.5,0.0003066,30]
[312246211,1705705847957,-623.0,0.0003067,30]
[312246212,1705705847966,-150.5,0.0003068,30]
[312246213,1705705847978,-623.0,0.0003068,30]
[312246214,1705705847988,-243.69,0.0003068,30]
[312246215,1705705847996,-500.0,0.00030684,2]
[312246216,1705705848006,-157.43,0.0003069,30]
[312246217,1705705848015,-150.5,0.0003069,30]
[312246218,1705705848025,-623.0,0.0003069,30]
[312246219,1705705848035,-50000.0,0.0003076,5]
[312246220,1705705848044,-39406.67423894,0.0003076,5]
[312246221,1705705848057,-2155.37244949,0.0003076,5]
[312246222,1705705848069,-300.0,0.0003076,5]
[312246225,1705706553709,451.1727057,0.00015962,2]
[312246226,1705706602933,683.87536543,0.00015962,2]
[312246227,1705706604089,8735.81383166,0.00015955,2]
[312246228,1705706604128,16164.18616834,0.00015955,2]
[312246229,1705706615264,154.86062544,0.00015962,2]
[312246230,1705706618947,683.87536543,0.00015962,2]
[312246231,1705706627300,234.597645,0.00015952,2]
[312246232,1705706631812,154.86062544,0.00014366,2]